fUST/lending_fUST_20260226
["ID","MTS","AMOUNT","RATE_DAILY","PERIOD"]
[406704599,1772107843099,-500.0,0.00013699,2]
[406704600,1772107843109,-500.0,0.00013699,2]
[406704601,1772107843118,-500.0,0.00013699,2]
[406704602,1772107843127,-331.79859683,0.00013699,2]
[406704603,1772107843136,-500.0,0.00013699,2]
[406704604,1772107843145,-500.0,0.00013699,2]
[406704605,1772107843155,-500.0,0.00013699,2]
[406704606,1772107843165,-500.0,0.00013699,2]
[406704607,1772107843174,-500.0,0.00013699,2]
[406704608,1772107843184,-500.0,0.00013699,2]
[406704609,1772107843193,-500.0,0.00013699,2]
[406704610,1772107843203,-500.0,0.00013699,2]
[406704611,1772107843212,-505.07865696,0.00013699,2]
[406704612,1772107843221,-500.0,0.00013699,2]
[406704613,1772107843230,-500.0,0.00013699,2]
[406704614,1772107843240,-500.0,0.00013699,2]
[406704615,1772107843249,-158.21933482,0.00013699,2]
[406704616,1772107843258,-500.0,0.00013699,2]
[406704617,1772107843267,-500.0,0.00013699,2]
[406704618,1772107843276,-547.91161747,0.00013699,2]
[406704619,1772107843284,-500.0,0.00013699,2]
[406704620,1772107843293,-621.2702547,0.00013699,2]
[406704621,1772107843304,-500.0,0.00013699,2]
[406704622,1772107843313,-500.0,0.00013699,2]
[406704623,1772107843322,-500.0,0.00013699,2]
[406704624,1772107843332,-500.0,0.00013699,2]
[406704625,1772107843341,-500.0,0.00013699,2]
[406704626,1772107843351,-500.0,0.00013699,2]
[406704627,1772107843361,-500.0,0.00013699,2]
[406704628,1772107843370,-500.0,0.00013699,2]
[406704629,1772107843380,-500.0,0.00013699,2]
[406704630,1772107843389,-500.0,0.00013699,2]
[406704631,1772107843399,-500.0,0.00013699,2]
[406704632,1772107843408,-500.0,0.00013699,2]
[406704633,1772107843417,-500.0,0.00013699,2]
[406704634,1772107843426,-500.0,0.00013699,2]
[406704635,1772107843436,-500.0,0.00013699,2]
[406704636,1772107843446,-564.64954297,0.00013699,2]
[406704637,1772107843455,-500.0,0.00013699,2]
[406704638,1772107843464,-500.6715172,0.00013699,2]
[406704639,1772107843474,-500.0,0.00013699,2]
[406704640,1772107843484,-500.0,0.00013699,2]
[406704641,1772107843493,-500.0,0.00013699,2]
[406704642,1772107843502,-500.0,0.00013699,2]
[406704643,1772107843511,-500.0,0.00013699,2]
[406704644,1772107843521,-500.0,0.00013719,2]
[406704645,1772107843530,-500.0,0.00013821,2]
[406704646,1772107843540,-500.0,0.00013821,2]
[406704647,1772107843549,-1000.0,0.00013821,2]
[406704648,1772107843559,-500.0,0.00013821,2]
[406704649,1772107843568,-948.14718627,0.00013821,2]
[406704650,1772107843577,-626.24037135,0.00013821,2]
[406704651,1772107843586,-1000.0,0.00013821,2]
[406704652,1772107843596,-1000.0,0.00013821,2]
[406704653,1772107843605,-1000.0,0.00013821,2]
[406704654,1772107843615,-1000.0,0.00013821,2]
[406704655,1772107843624,-228.45659012,0.00013973,2]
[406704656,1772107843633,-500.0,0.00013993,2]
[406704657,1772107843643,-1702.94376338,0.00014175,2]
[406704658,1772107843653,-485.50149559,0.00014221,2]
[406704659,1772107843662,-500.0,0.00014247,2]
[406704660,1772107843671,-242.32245964,0.00014247,2]
[406704661,1772107843680,-500.0,0.00014247,2]
[406704662,1772107843690,-500.0,0.00014247,2]
[406704663,1772107843699,-501.07445097,0.00014247,2]
[406704664,1772107843708,-500.66088723,0.00014247,2]
[406704665,1772107843717,-576.30215063,0.00014247,2]
[406704666,1772107843726,-170.1790269,0.00014247,2]
[406704667,1772107843735,-1130.01259049,0.00014247,2]
[406704668,1772107843744,-1002.63910554,0.00014247,2]
[406704669,1772107843754,-657.97518155,0.00014247,2]
[406704670,1772107843764,-714.25342419,0.00014247,2]
[406704671,1772107843773,-633.77964294,0.00014247,2]
[406704672,1772107843782,-1000.82824789,0.00014247,2]
[406704673,1772107843791,-1000.0,0.00014247,2]
[406704674,1772107843802,-501.08865684,0.00014247,2]
[406704675,1772107843811,-500.0,0.00014247,2]
[406704676,1772107843820,-500.0,0.00014247,2]
[406704677,1772107843829,-500.0,0.00014267,2]
[406704678,1772107843839,-264.52,0.00014268,2]
[406704679,1772107843849,-1500.0,0.00014368,2]
[406704680,1772107843859,-1500.0,0.00014368,2]
[406704681,1772107843868,-1500.0,0.00014368,2]
[406704682,1772107843878,-1500.0,0.00014368,2]
[406704683,1772107843888,-256.0,0.00014441,2]
[406704684,1772107843897,-420.0,0.00014441,2]
[406704685,1772107843907,-420.0,0.00014441,2]
[406704686,1772107843917,-420.0,0.00014441,2]
[406704687,1772107843926,-1680.0,0.00014487,2]
[406704688,1772107843936,-500.0,0.00014541,2]
[406704689,1772107843946,-720.0,0.00014777,2]
[406704690,1772107843955,-1500.0,0.00014795,2]
[406704691,1772107843966,-560.98465938,0.00014815,2]
[406704692,1772107843979,-1858.77812888,0.00014916,2]
[406704693,1772107843988,-231.36987783,0.00014916,2]
[406704694,1772107843998,-1088.95506943,0.00014916,2]
[406704695,1772107844009,-1178.28,0.00015193,3]
[406704696,1772107844018,-294.57,0.00015193,3]
[406704697,1772107844028,-883.72,0.00015193,3]
[406704698,1772107844038,-32422.09493899,0.00015203,2]
[406704699,1772107844051,-250.0,0.00015221,2]
[406704700,1772107844061,-183.8970796,0.00015342,2]
[406704701,1772107844070,-971.25074607,0.00015524,2]
[406704702,1772107844080,-1888.419062,0.000157,2]
[406704703,1772107844090,-589.14,0.00015825,3]
[406704704,1772107844100,-587.0,0.00015834,2]
[406704705,1772107844110,-480.0,0.00015834,2]
[406704706,1772107844119,-587.0,0.00015834,2]
[406704707,1772107844129,-2351.0,0.00015936,2]
[406704708,1772107844138,-200.0,0.00016027,3]
[406704709,1772107844148,-864.0,0.00016254,2]
[406704710,1772107844157,-410.98542713,0.00016379,2]
[406704711,1772107844166,-455.84168162,0.00016379,2]
[406704712,1772107844175,-151.0,0.00016438,2]
[406704713,1772107844186,-151.0,0.00016438,2]
[406704714,1772107844195,-2356.56,0.00016563,3]
[406704715,1772107844204,-589.14,0.00016563,3]
[406704716,1772107844214,-1178.28,0.00017195,3]
[406704717,1772107844223,-823.0,0.00017361,2]
[406704718,1772107844232,-3292.0,0.00017529,2]
[406704719,1772107844242,-376.86901236,0.00017635,2]
[406704720,1772107844252,-237.95544989,0.00017852,2]
[406704721,1772107844262,-159.90596052,0.00017852,2]
[406704722,1772107844271,-287.83072894,0.00017852,2]
[406704723,1772107844280,-511.69907367,0.00017852,2]
[406704724,1772107844289,-1000.0,0.0001788,2]
[406704725,1772107844299,-39229.69901595,0.0001799,2]
[406704726,1772107844308,-6220.15789422,0.00018,2]
[406704727,1772107844318,-500.0,0.000185,2]
[406704728,1772107844327,-500.0,0.00018509,2]
[406704729,1772107844337,-200.0,0.00018615,4]
[406704730,1772107844347,-500.0,0.00018693,2]
[406704731,1772107844357,-500.0,0.00018946,2]
[406704732,1772107844367,-500.0,0.00018946,2]
[406704733,1772107844376,-500.0,0.00018946,2]
[406704734,1772107844386,-271.87514343,0.00018946,2]
[406704735,1772107844395,-500.0,0.00018946,2]
[406704736,1772107844405,-500.0,0.00018946,2]
[406704737,1772107844414,-500.0,0.00018946,2]
[406704738,1772107844423,-500.0,0.00018946,2]
[406704739,1772107844433,-500.0,0.00018946,2]
[406704740,1772107844442,-500.0,0.00018946,2]
[406704741,1772107844452,-500.0,0.00018946,2]
[406704742,1772107844461,-194.72792766,0.00018946,2]
[406704743,1772107844470,-201.93286099,0.00018946,2]
[406704744,1772107844479,-209.40437684,0.00018946,2]
[406704745,1772107844488,-217.15233878,0.00018946,2]
[406704746,1772107844497,-225.18697532,0.00018946,2]
[406704747,1772107844506,-233.51889341,0.00018946,2]
[406704748,1772107844516,-242.15909246,0.00018946,2]
[406704749,1772107844525,-251.11897888,0.00018946,2]
[406704750,1772107844535,-205.52978782,0.00018946,2]
[406704751,1772107844544,-260.4103811,0.00018946,2]
[406704752,1772107844553,-270.0455652,0.00018946,2]
[406704753,1772107844562,-280.03725112,0.00018946,2]
[406704754,1772107844571,-290.39862941,0.00018946,2]
[406704755,1772107844580,-301.1433787,0.00018946,2]
[406704756,1772107844590,-2579.17784983,0.00018946,2]
[406704757,1772107844599,-1152.0,0.00019036,2]
[406704758,1772107844609,-318.238351,0.00019161,7]
[406704759,1772107844618,-151.0,0.00019178,2]
[406704760,1772107844628,-151.0,0.00019178,2]
[406704761,1772107844637,-151.0,0.00019178,2]
[406704762,1772107844647,-262.336667,0.00019178,2]
[406704763,1772107844656,-907.116966,0.00019178,2]
[406704764,1772107844665,-907.116966,0.00019178,2]
[406704765,1772107844675,-907.116966,0.00019178,2]
[406704766,1772107844684,-907.116966,0.00019178,2]
[406704767,1772107844693,-907.116966,0.00019178,2]
[406704768,1772107844702,-907.116966,0.00019178,2]
[406704769,1772107844712,-907.116966,0.00019178,2]
[406704770,1772107844721,-907.116966,0.00019178,2]
[406704771,1772107844731,-907.116966,0.00019178,2]
[406704772,1772107844905,-907.116966,0.00019178,2]
[406704773,1772107844916,-907.116966,0.00019178,2]
[406704774,1772107844925,-907.116966,0.00019178,2]
[406704775,1772107844938,-283.61731756,0.00019206,2]
[406704776,1772107844948,-4609.0,0.00019282,2]
[406704777,1772107844958,-500.0,0.0001929,2]
[406704778,1772107844970,-151.0,0.000193,2]
[406704779,1772107844981,-266.0008,0.00019339,30]
[406704780,1772107844991,-275.0,0.0001938,120]
[406704781,1772107845001,-215.1557458,0.00019453,2]
[406704782,1772107845011,-540.45450078,0.00019453,2]
[406704783,1772107845020,-972.81810141,0.00019453,2]
[406704784,1772107845030,-1729.45440251,0.00019453,2]
[406704785,1772107845039,-2699.57023142,0.00019453,2]
[406704786,1772107845052,-403.63407198,0.00019453,2]
[406704787,1772107845061,-461.29608227,0.00019453,2]
[406704788,1772107845071,-2674.60743027,0.00019494,2]
[406704789,1772107845080,-82945.161872,0.00019627,2]
[406704790,1772107845091,-151.0,0.00019627,2]
[406704791,1772107845100,-151.0,0.00019627,2]
[406704792,1772107845110,-907.116966,0.00019627,2]
[406704793,1772107845118,-907.116966,0.00019627,2]
[406704794,1772107845127,-907.116966,0.00019627,2]
[406704795,1772107845136,-907.116966,0.00019627,2]
[406704796,1772107845145,-420.91863719,0.00019635,2]
[406704797,1772107845155,-1000.0,0.00019668,2]
[406704798,1772107845165,-244.0,0.00019668,2]
[406704799,1772107845174,-744.71502317,0.00019757,2]
[406704800,1772107845183,-151.0,0.00019869,2]
[406704801,1772107845193,-1092.47302665,0.00019893,2]
[406704802,1772107845203,-5684.7582853,0.00019969,2]
[406704803,1772107845213,-5028.274479,0.0002,2]
[406704804,1772107845223,-4618.87114031,0.0002,2]
[406704805,1772107845232,-972.36549608,0.0002,7]
[406704806,1772107845242,-3589.66802146,0.0002,2]
[406704807,1772107845251,-161217.42628638,0.0002,2]
[406704813,1772107846210,-194.10796332,0.0002,2]
[406704814,1772107846250,731.74,0.000102,2]
[406704815,1772107846468,731.74,0.000102,2]
[406704816,1772107846772,731.74,0.000103,2]
[406704817,1772107846844,731.74,0.000103,2]
[406704818,1772107846866,-14970.90944582,0.0002,2]
[406704819,1772107846974,731.74,0.000103,2]
[406704820,1772107847439,731.74,0.000103,2]
[406704821,1772107848406,731.74,0.000103,2]
[406704822,1772107849330,731.74,0.000104,2]
[406704823,1772107850050,731.74,0.000104,2]
[406704824,1772107850642,731.74,0.000104,2]
[406704825,1772107851922,731.74,0.000104,2]
[406704826,1772107852629,731.74,0.000104,2]
[406704827,1772107853947,731.74,0.000104,2]
[406704829,1772108035935,158.0,0.0001,3]
[406704837,1772108580722,1586.86,0.000157,120]
[406704838,1772108740179,-300.0,0.00012328,2]
[406704839,1772108740201,-256.67729613,0.00012328,2]
[406704850,1772108832086,-866.11569234,0.00012328,2]
[406704851,1772108837084,-77.20701153,0.00012328,2]
[406704852,1772108837105,-81.15976716,0.00012328,2]
[406704855,1772108947099,-158.29536454,0.00012328,2]
[406704856,1772108947120,-594.0,0.00012329,2]
[406704857,1772108947142,-4571.19511863,0.00013065,2]
[406704858,1772108947163,-200.0,0.00013134,2]
[406704859,1772108947185,-300.0,0.00013163,2]
[406704860,1772108947207,-500.0,0.00013164,2]
[406704861,1772108947231,-613.8108563,0.00013164,2]
[406704862,1772108947256,-500.0,0.00013164,2]
[406704863,1772108947278,-500.0,0.00013164,2]
[406704864,1772108947298,-500.0,0.00013164,2]
[406704865,1772108947326,-500.0,0.00013164,2]
[406704866,1772108947349,-500.0,0.00013164,2]
[406704867,1772108947374,-500.0,0.00013164,2]
[406704868,1772108947398,-500.0,0.00013164,2]
[406704869,1772108947420,-500.0,0.00013164,2]
[406704870,1772108947442,-500.0,0.00013164,2]
[406704871,1772108947465,-500.0,0.00013164,2]
[406704872,1772108947485,-595.62495259,0.00013164,2]
[406704873,1772108947505,-446.23912211,0.00013164,2]
[406704874,1772108947530,-621.54973817,0.00013164,2]
[406704875,1772108947551,-292.55744964,0.00013164,2]
[406704876,1772108947573,-500.0,0.00013164,2]
[406704877,1772108947596,-500.0,0.00013164,2]
[406704878,1772108947619,-500.0,0.00013164,2]
[406704879,1772108947640,-500.0,0.00013164,2]
[406704880,1772108947660,-500.0,0.00013164,2]
[406704881,1772108947683,-500.0,0.00013164,2]
[406704882,1772108947706,-500.0,0.00013164,2]
[406704883,1772108947726,-500.0,0.00013164,2]
[406704884,1772108947749,-574.68535661,0.00013164,2]
[406704885,1772108947771,-500.0,0.00013164,2]
[406704886,1772108947798,-500.0,0.00013164,2]
[406704887,1772108947823,-500.0,0.00013164,2]
[406704888,1772108947845,-500.0,0.00013164,2]
[406704889,1772108947867,-500.0,0.00013164,2]
[406704890,1772108947887,-500.0,0.00013164,2]
[406704891,1772108947909,-500.0,0.00013164,2]
[406704892,1772108947930,-500.0,0.00013164,2]
[406704893,1772108947954,-500.0,0.00013164,2]
[406704894,1772108947977,-500.0,0.00013164,2]
[406704895,1772108948001,-500.0,0.00013164,2]
[406704896,1772108948022,-500.0,0.00013164,2]
[406704897,1772108948046,-500.0,0.00013164,2]
[406704898,1772108948069,-500.0,0.00013164,2]
[406704899,1772108948092,-500.0,0.00013164,2]
[406704900,1772108948115,-500.0,0.00013164,2]
[406704901,1772108948137,-500.0,0.00013164,2]
[406704902,1772108948162,-500.0,0.00013164,2]
[406704903,1772108948186,-500.0,0.00013164,2]
[406704904,1772108948209,-500.0,0.00013164,2]
[406704905,1772108948235,-500.0,0.00013164,2]
[406704906,1772108948257,-500.0,0.00013164,2]
[406704907,1772108948279,-500.0,0.00013164,2]
[406704908,1772108948303,-500.0,0.00013164,2]
[406704909,1772108948341,-500.0,0.00013164,2]
[406704910,1772108948362,-500.0,0.00013164,2]
[406704911,1772108948389,-500.0,0.00013164,2]
[406704912,1772108948414,-500.0,0.00013164,2]
[406704913,1772108948440,-500.0,0.00013164,2]
[406704914,1772108948463,-500.0,0.00013164,2]
[406704915,1772108948486,-500.0,0.00013164,2]
[406704916,1772108948510,-500.0,0.00013164,2]
[406704917,1772108948536,-500.0,0.00013164,2]
[406704918,1772108948560,-500.0,0.00013164,2]
[406704919,1772108948583,-500.0,0.00013164,2]
[406704920,1772108948605,-500.0,0.00013164,2]
[406704921,1772108948628,-500.0,0.00013164,2]
[406704922,1772108948650,-500.0,0.00013164,2]
[406704923,1772108948675,-500.0,0.00013164,2]
[406704924,1772108948696,-500.0,0.00013164,2]
[406704925,1772108948718,-500.0,0.00013164,2]
[406704926,1772108948743,-500.0,0.00013164,2]
[406704927,1772108948764,-500.0,0.00013164,2]
[406704928,1772108948786,-500.0,0.00013164,2]
[406704929,1772108948809,-500.0,0.00013164,2]
[406704930,1772108948834,-500.0,0.00013164,2]
[406704931,1772108948862,-500.0,0.00013164,2]
[406704932,1772108948889,-500.0,0.00013164,2]
[406704933,1772108948917,-500.0,0.00013164,2]
[406704934,1772108948953,-500.0,0.00013164,2]
[406704935,1772108948992,-500.0,0.00013164,2]
[406704936,1772108949021,-500.0,0.00013164,2]
[406704937,1772108949045,-500.0,0.00013164,2]
[406704938,1772108949078,-500.0,0.00013164,2]
[406704939,1772108949100,-500.0,0.00013164,2]
[406704940,1772108949126,-500.0,0.00013164,2]
[406704941,1772108949148,-500.0,0.00013164,2]
[406704942,1772108949185,-500.0,0.00013164,2]
[406704943,1772108949246,-500.0,0.00013164,2]
[406704944,1772108949276,-500.0,0.00013164,2]
[406704945,1772108949319,-500.0,0.00013164,2]
[406704946,1772108949346,-451.21415879,0.00013164,2]
[406704947,1772108949368,-500.0,0.00013164,2]
[406704948,1772108949399,-204.66970852,0.00013164,2]
[406704949,1772108965070,-295.33029148,0.00013164,2]
[406704950,1772108965093,-500.0,0.00013164,2]
[406704951,1772108965115,-500.0,0.00013164,2]
[406704952,1772108965137,-500.0,0.00013164,2]
[406704953,1772108965158,-500.0,0.00013164,2]
[406704954,1772108965180,-500.0,0.00013164,2]
[406704955,1772108965201,-500.0,0.00013164,2]
[406704956,1772108965223,-500.0,0.00013164,2]
[406704957,1772108965244,-500.0,0.00013164,2]
[406704958,1772108965265,-500.0,0.00013164,2]
[406704959,1772108965287,-500.0,0.00013164,2]
[406704960,1772108965312,-500.0,0.00013164,2]
[406704961,1772108965334,-500.0,0.00013164,2]
[406704962,1772108965355,-500.0,0.00013164,2]
[406704963,1772108965375,-500.0,0.00013164,2]
[406704964,1772108965394,-377.60952635,0.00013164,2]
[406704965,1772108965416,-1899.62627484,0.00013164,2]
[406704966,1772108965642,-1899.62627484,0.00013164,2]
[406704967,1772108965665,-1899.62627484,0.00013164,2]
[406704968,1772108965687,-1899.62627484,0.00013164,2]
[406704969,1772108965709,-1899.62627484,0.00013164,2]
[406704970,1772108965734,-1899.62627484,0.00013164,2]
[406704971,1772108965764,-1899.62627484,0.00013164,2]
[406704972,1772108965786,-1899.62627484,0.00013164,2]
[406704973,1772108965809,-774.2291078,0.00013164,2]
[406704974,1772108965830,-774.2291078,0.00013164,2]
[406704975,1772108965851,-1899.62627484,0.00013164,2]
[406704976,1772108965873,-774.2291078,0.00013164,2]
[406704977,1772108965894,-1899.62627484,0.00013164,2]
[406704978,1772108965915,-774.2291078,0.00013164,2]
[406704979,1772108965937,-1899.62627484,0.00013164,2]
[406704980,1772108965961,-1899.62627484,0.00013164,2]
[406704981,1772108965982,-774.2291078,0.00013164,2]
[406704982,1772108966004,-1899.62627484,0.00013164,2]
[406704983,1772108966026,-774.2291078,0.00013164,2]
[406704984,1772108966047,-1899.62627484,0.00013164,2]
[406704985,1772108966068,-774.2291078,0.00013164,2]
[406704986,1772108966090,-774.2291078,0.00013164,2]
[406704987,1772108966111,-1899.62627484,0.00013164,2]
[406704988,1772108966132,-774.2291078,0.00013164,2]
[406704989,1772108966154,-774.2291078,0.00013164,2]
[406704990,1772108966175,-1899.62627484,0.00013164,2]
[406704991,1772108966195,-774.2291078,0.00013164,2]
[406704992,1772108966217,-1899.62627484,0.00013164,2]
[406704993,1772108966239,-774.2291078,0.00013164,2]
[406704994,1772108966260,-1899.62627484,0.00013164,2]
[406704995,1772108966281,-824.26642784,0.00013164,2]
[406704997,1772108966305,-774.2291078,0.00013164,2]
[406704999,1772108966341,-1899.62627484,0.00013164,2]
[406705001,1772108966363,-824.26642784,0.00013164,2]
[406705002,1772108966386,-774.2291078,0.00013164,2]
[406705003,1772108966410,-824.26642784,0.00013164,2]
[406705004,1772108966432,-774.2291078,0.00013164,2]
[406705005,1772108966455,-1899.62627484,0.00013164,2]
[406705006,1772108966476,-774.2291078,0.00013164,2]
[406705007,1772108966498,-824.26642784,0.00013164,2]
[406705008,1772108966519,-1899.62627484,0.00013164,2]
[406705009,1772108966542,-774.2291078,0.00013164,2]
[406705010,1772108966565,-824.26642784,0.00013164,2]
[406705011,1772108966586,-1899.62627484,0.00013164,2]
[406705012,1772108966609,-774.2291078,0.00013164,2]
[406705013,1772108966631,-824.26642784,0.00013164,2]
[406705014,1772108966652,-1899.62627484,0.00013164,2]
[406705015,1772108966676,-774.2291078,0.00013164,2]
[406705016,1772108966697,-824.26642784,0.00013164,2]
[406705017,1772108966720,-774.2291078,0.00013164,2]
[406705018,1772108966742,-1899.62627484,0.00013164,2]
[406705019,1772108966765,-824.26642784,0.00013164,2]
[406705020,1772108966787,-1899.62627484,0.00013164,2]
[406705021,1772108966811,-774.2291078,0.00013164,2]
[406705022,1772108966831,-824.26642784,0.00013164,2]
[406705023,1772108966853,-1899.62627484,0.00013164,2]
[406705024,1772108966874,-774.2291078,0.00013164,2]
[406705025,1772108966896,-1899.62627484,0.00013164,2]
[406705026,1772108966916,-824.26642784,0.00013164,2]
[406705027,1772108966938,-774.2291078,0.00013164,2]
[406705028,1772108966960,-1899.62627484,0.00013164,2]
[406705029,1772108966980,-824.26642784,0.00013164,2]
[406705030,1772108967002,-1899.62627484,0.00013164,2]
[406705031,1772108967022,-824.26642784,0.00013164,2]
[406705032,1772108967045,-1899.62627484,0.00013164,2]
[406705033,1772108967070,-774.2291078,0.00013164,2]
[406705034,1772108967092,-824.26642784,0.00013164,2]
[406705035,1772108967115,-774.2291078,0.00013164,2]
[406705036,1772108967136,-1899.62627484,0.00013164,2]
[406705037,1772108967157,-824.26642784,0.00013164,2]
[406705038,1772108967180,-774.2291078,0.00013164,2]
[406705039,1772108967201,-1899.62627484,0.00013164,2]
[406705040,1772108967222,-824.26642784,0.00013164,2]
[406705041,1772108967243,-1899.62627484,0.00013164,2]
[406705042,1772108967262,-824.26642784,0.00013164,2]
[406705043,1772108967285,-774.2291078,0.00013164,2]
[406705044,1772108967306,-1899.62627484,0.00013164,2]
[406705045,1772108967328,-824.26642784,0.00013164,2]
[406705046,1772108967351,-774.2291078,0.00013164,2]
[406705047,1772108967371,-824.26642784,0.00013164,2]
[406705048,1772108967392,-774.2291078,0.00013164,2]
[406705049,1772108967414,-824.26642784,0.00013164,2]
[406705050,1772108967433,-824.26642784,0.00013164,2]
[406705051,1772108967454,-1899.62627484,0.00013164,2]
[406705052,1772108967476,-774.2291078,0.00013164,2]
[406705053,1772108967497,-824.26642784,0.00013164,2]
[406705054,1772108967517,-1899.62627484,0.00013164,2]
[406705055,1772108967539,-774.2291078,0.00013164,2]
[406705056,1772108967559,-1899.62627484,0.00013164,2]
[406705057,1772108967579,-774.2291078,0.00013164,2]
[406705058,1772108967600,-774.2291078,0.00013164,2]
[406705059,1772108967623,-774.2291078,0.00013164,2]
[406705060,1772108967644,-774.2291078,0.00013164,2]
[406705061,1772108967665,-774.2291078,0.00013164,2]
[406705062,1772108967685,-774.2291078,0.00013164,2]
[406705063,1772108967707,-824.26642784,0.00013164,2]
[406705064,1772108967729,-774.2291078,0.00013164,2]
[406705065,1772108967755,-824.26642784,0.00013164,2]
[406705066,1772108967777,-774.2291078,0.00013164,2]
[406705067,1772108967799,-824.26642784,0.00013164,2]
[406705068,1772108967821,-774.2291078,0.00013164,2]
[406705069,1772108967842,-824.26642784,0.00013164,2]
[406705070,1772108967865,-774.2291078,0.00013164,2]
[406705071,1772108967887,-824.26642784,0.00013164,2]
[406705072,1772108967911,-774.2291078,0.00013164,2]
[406705073,1772108967936,-824.26642784,0.00013164,2]
[406705074,1772108967961,-774.2291078,0.00013164,2]
[406705075,1772108967982,-824.26642784,0.00013164,2]
[406705076,1772108968004,-824.26642784,0.00013164,2]
[406705077,1772108968029,-774.2291078,0.00013164,2]
[406705078,1772108968051,-824.26642784,0.00013164,2]
[406705079,1772108968073,-774.2291078,0.00013164,2]
[406705080,1772108968095,-824.26642784,0.00013164,2]
[406705081,1772108968118,-774.2291078,0.00013164,2]
[406705082,1772108968140,-824.26642784,0.00013164,2]
[406705083,1772108968163,-774.2291078,0.00013164,2]
[406705084,1772108968184,-824.26642784,0.00013164,2]
[406705085,1772108968207,-774.2291078,0.00013164,2]
[406705086,1772108968382,-824.26642784,0.00013164,2]
[406705087,1772108968405,-774.2291078,0.00013164,2]
[406705088,1772108968425,-824.26642784,0.00013164,2]
[406705089,1772108968447,-543.54908726,0.00013164,2]
[406705140,1772109032432,-96.23507693,0.00013163,2]
[406705143,1772109037969,-203.76492307,0.00013163,2]
[406705144,1772109037980,-1200.0,0.00013163,2]
[406705145,1772109037990,-607.0,0.00013164,2]
[406705146,1772109038000,-123.16918766,0.00013164,2]
[406705147,1772109038473,-27.83081234,0.00013164,2]
[406705148,1772109038482,-230.68002054,0.00013164,2]
[406705149,1772109038491,-774.2291078,0.00013164,2]
[406705150,1772109038501,-824.26642784,0.00013164,2]
[406705151,1772109038509,-774.2291078,0.00013164,2]
[406705152,1772109038522,-824.26642784,0.00013164,2]
[406705153,1772109038532,-774.2291078,0.00013164,2]
[406705154,1772109038541,-824.26642784,0.00013164,2]
[406705155,1772109038550,-824.26642784,0.00013164,2]
[406705156,1772109038559,-824.26642784,0.00013164,2]
[406705157,1772109038568,-774.2291078,0.00013164,2]
[406705158,1772109038578,-824.26642784,0.00013164,2]
[406705159,1772109038587,-824.26642784,0.00013164,2]
[406705160,1772109038597,-824.26642784,0.00013164,2]
[406705161,1772109038606,-824.26642784,0.00013164,2]
[406705162,1772109038627,-824.26642784,0.00013164,2]
[406705163,1772109038637,-824.26642784,0.00013164,2]
[406705164,1772109038647,-824.26642784,0.00013164,2]
[406705165,1772109038657,-500.0,0.00013164,2]
[406705166,1772109038667,-601.78717016,0.00013164,2]
[406705167,1772109038677,-745.05957579,0.00013164,2]
[406705168,1772109038687,-601.78717016,0.00013164,2]
[406705169,1772109038698,-745.05957579,0.00013164,2]
[406705170,1772109038712,-601.78717016,0.00013164,2]
[406705171,1772109038723,-500.0,0.00013164,2]
[406705172,1772109038732,-745.05957579,0.00013164,2]
[406705173,1772109038742,-500.0,0.00013164,2]
[406705174,1772109038753,-601.78717016,0.00013164,2]
[406705175,1772109038763,-745.05957579,0.00013164,2]
[406705176,1772109038773,-601.78717016,0.00013164,2]
[406705177,1772109038783,-745.05957579,0.00013164,2]
[406705178,1772109038794,-601.78717016,0.00013164,2]